Cogmind - Beta 16.1 @@@ ROGUE MODE // 2026.03.06 @ 02:37:41 Player: +Jones Result: Destroyed by W9-USX(R) with Subdweller Laser Performance ------------- Evolutions (0) 0 Regions Visited (2) 400 Robots Destroyed (29) 145 Value Destroyed (454) 454 Prototype IDs (2) 40 Alien Tech Used (0) 0 Bonus (-91) -91 TOTAL SCORE: 948 Bonus ------- Friendly Fire -91 Cogmind --------- Core Integrity 0/250 Matter 276/300 Energy 100/100 System Corruption 0% Temperature Cool (18) Movement Core (350) Ox6 Location -10/Subcaves Parts ------- > --- POWER (1) -------- (None) > --- PROPULSION (2) --- (None) > --- UTILITY (2) ------ Large Storage Unit > --- WEAPON (2) ------- (None) > --- INVENTORY (15) --- Wheel High-capacity Matter Pod (161) Improved Terrain Scanner Seismic Detector Light Armor Plating Light Armor Plating Light Armor Plating Light Armor Plating Light Armor Plating Light Armor Plating Assault Rifle Rocket Launcher Rocket Launcher Peak State ------------ > --- POWER ------------ Light Nuclear Core > --- PROPULSION ------- Light Treads Light Treads > --- UTILITY ---------- Large Storage Unit Light Armor Plating > --- WEAPON ----------- Assault Rifle Rocket Launcher > --- INVENTORY -------- High-capacity Matter Pod Improved Terrain Scanner Seismic Detector Seismic Detector Light Armor Plating Light Armor Plating Light Armor Plating Light Armor Plating Light Armor Plating Light Armor Plating Assault Rifle Light Cannon Rocket Launcher Mining Laser [Rating: 11] Favorites ----------- Power Light Nuclear Core Engine Light Ion Engine Power Core Light Nuclear Core Propulsion Light Treads Treads Light Treads Utility Small Storage Unit Device Seismic Detector Storage Small Storage Unit Protection Light Armor Plating Weapon Assault Rifle Energy Gun Medium Laser Ballistic Gun Assault Rifle Ballistic Cannon Light Cannon Launcher Rocket Launcher Special Weapon Mining Laser Build | -11 -10 -10 ------- Run | Yrd Mat Sub Slots Evolved . | . . . Power . | . . . Propulsion . | . . . Utility . | . . . Weapon . | . . . Parts Attached 16 | 7 9 . Power 2 | 1 1 . Engine 1 | 1 . . Core 1 | . 1 . Reactor . | . . . Propulsion 2 | 2 . . Treads 2 | 2 . . Leg . | . . . Wheel . | . . . Hover . | . . . Flight . | . . . Utility 6 | 2 4 . Device 3 | 1 2 . Storage 2 | 1 1 . Processor . | . . . Hackware . | . . . Protection 1 | . 1 . Artifact . | . . . Weapon 6 | 2 4 . Energy Gun 1 | 1 . . Energy Cannon . | . . . Ballistic Gun 2 | 1 1 . Ballistic Cannon 1 | . 1 . Launcher 1 | . 1 . Special Weapon 1 | . 1 . Impact Weapon . | . . . Slashing Weapon . | . . . Piercing Weapon . | . . . Special Melee Weapon . | . . . Unidentified Prototypes . | . . . Parts Lost 8 | . 1 7 Power 2 | . 1 1 Propulsion 2 | . . 2 Utility 1 | . . 1 Weapon 3 | . . 3 Highest Loss Streak 7 | . 1 7 To Critical Strikes . | . . . Average Backups 8 | 1 9 13 Power . | . . . Propulsion . | . . 1 Utility 5 | . 5 9 Weapon 3 | 1 3 3 Tool/Special . | . . . Unused Backups 13 | . 3 10 Power . | . . . Propulsion 1 | . . 1 Utility 9 | . 1 8 Weapon 3 | . 2 1 Tool/Special . | . . . Average Slot Usage (%) 99 | . 99 96 Engine 6 | . 6 . Core 7 | . 6 14 Treads 27 | . 28 27 Device 7 | . 7 13 Storage 14 | . 14 14 Protection 5 | . 6 . Energy Gun 1 | . 1 . Ballistic Gun 20 | . 19 27 Ballistic Cannon 4 | . 4 . Special Weapon 1 | . 2 . Peak Build Rating 11 | 7 11 10 Average Rating 8 | 5 8 9 On Entrance 5 | . 7 10 Avg Prop Armor Cover (%) . | . . . Naked Turns . | . . . Heaviest Build 33 | 13 33 30 Greatest Support 40 | 40 40 40 Greatest Overweight (x) . | . . . Average Overweight (x) . | . . . Largest Inventory Capacity 15 | 8 15 15 Average Capacity 10 | 7 10 15 Most Carried 15 | 4 15 14 Average Carried 8 | 1 9 13 Final Capacity 15 | 8 15 15 Final Carried 14 | 4 14 13 Class Distribution -------------------- 100% | Mutant Dominant Class ---------------- Mutant | -10/Materials Mutant | -10/Subcaves Resources | -11 -10 -10 ----------- Run | Yrd Mat Sub Matter Collected 965 | 287 656 22 Remotely . | . . . Salvage Created 753 | 129 602 22 Parts 64 | 13 51 . Haulers Intercepted 1 | . 1 . Recyclers Shooed 2 | . 2 . Parts Field Recycled . | . . . Retrieved Matter . | . . . Parts Self-Destructed 11 | . . 11 Prevented . | . . . Parts Restored . | . . . Kills | -11 -10 -10 ------- Run | Yrd Mat Sub Combat Hostiles Destroyed 13 | . 13 . Guns 8 | . 8 . Cannons 4 | . 4 . AOE 1 | . 1 . Classes Destroyed 9 | 2 6 1 Worker 1 | . 1 . Builder 3 | . 3 . Tunneler 5 | 4 1 . Hauler 1 | . 1 . Recycler 3 | 1 2 . Watcher 3 | . 3 . Swarmer 5 | . 5 . Grunt 8 | . 8 . Scientist 1 | . . 1 Best Kill Streak 6 | 4 6 . Combat Bots Only 2 | . 2 . Max Kills in Single Turn 1 | 1 1 1 Gunslinging . | . . . Exploded 1 | . 1 . Melee . | . . . Uniques/NPCs Destroyed . | . . . Combat | -11 -10 -10 -------- Run | Yrd Mat Sub Hostile Shots Fired 89 | . 50 39 Missed 21 | . 13 8 Hits 68 | . 37 31 Projectile 68 | . 37 31 Critical Strikes 1 | . . 1 Damage Taken 1065 | . 415 650 Core 256 | . 73 183 Absorbed by Shields . | . . . Core Remaining (%) 100 | 100 . . Volleys Fired 90 | 12 71 7 Largest 2 | 2 2 2 Hottest 100 | 70 100 100 Shots Fired 157 | 24 121 12 Gun 105 | 24 71 10 Cannon 36 | . 35 1 Launcher 2 | . 2 . Special 14 | . 13 1 Kinetic 120 | 12 97 11 Thermal 35 | 12 22 1 Explosive 2 | . 2 . Electromagnetic . | . . . Robot Hit Streak 13 | 7 13 8 Robot Miss Streak 4 | 1 4 1 Penetration Max . | . . . Secondary Targets . | . . . Shots Hit Robots 92 | 17 66 9 Core Hits 38 | 6 29 3 Critical Kills . | . . . Critical Parts Destroyed . | . . . Critical Strikes 3 | 2 1 . Burn 2 | 2 . . Blast 1 | . 1 . Melee Attacks . | . . . Impact . | . . . Slashing . | . . . Piercing . | . . . Sneak Attacks . | . . . Combat Hostiles . | . . . Follow-up Attacks . | . . . Damage Inflicted 1506 | 220 1169 117 Guns 986 | 220 667 99 Cannons 337 | . 319 18 Explosions 159 | . 159 . Melee . | . . . Ramming . | . . . Kinetic 1158 | 106 935 117 Thermal 189 | 114 75 . Explosive 159 | . 159 . Electromagnetic . | . . . Impact . | . . . Slashing . | . . . Piercing . | . . . Highest Corruption . | . . . Average Corruption . | . . . Corruption Purged . | . . . Corruption Blocked . | . . . Overload Shots . | . . . Overflow Damage 4 | . 4 . Projectiles 4 | . 4 . Explosions . | . . . Melee . | . . . Knockbacks 3 | . 3 . Impact . | . . . Kinetic 3 | . 3 . Secondary . | . . . Self-Inflicted Damage . | . . . Shots . | . . . Rammed . | . . . Targets Rammed . | . . . Kicked . | . . . Crushed . | . . . Highest Temperature 240 | 54 240 22 Average Temperature 37 | 21 40 14 Received Heat Transfer 357 | . 174 183 Effects 1 | . 1 . Interference 1 | . 1 . Siege Activations . | . . . Martial Activations . | . . . Shielding Activations . | . . . Robots Disrupted . | . . . Combat Hostiles . | . . . Robots Corrupted . | . . . Combat Hostiles . | . . . Parts Fried . | . . . Impact Corruptions . | . . . Robots Melted . | . . . Combat Hostiles . | . . . Parts Melted 1 | 1 . . Heat Transferred 679 | 481 198 . Parts Sabotaged . | . . . Parts Stolen . | . . . Parts Stripped . | . . . Power Chain Reactions . | . . . Alert | -11 -10 -10 ------- Run | Yrd Mat Sub Maximum Alert Level . | . . . Low Security (%) 100 | 100 100 . Level 1 . | . . . Level 2 . | . . . Level 3 . | . . . Level 4 . | . . . Level 5 . | . . . High Security . | . . . Max Security . | . . . Peak Influence 173 | 15 173 . Initial . | . . . Average 46 | 3 50 . Influence Increases 529 | 25 504 . Destroy 0b10 Robot/C 260 | . 260 . Destroy 0b10 Robot/NC 80 | 25 55 . Destroy Leader 58 | . 58 . Successful Hack 30 | . 30 . Select Force Hacks 30 | . 30 . Destroy Structure 26 | . 26 . Lose Combat Pursuer 45 | . 45 . Influence Decreases 529 | 25 348 156 Entered New Map 76 | . . 76 Time Decay 423 | 25 338 60 Lost Part 20 | . . 20 Lost Ally 10 | . 10 . Squads Dispatched 2 | . 2 . Investigation 1 | . 1 . Extermination . | . . . Reinforcement 1 | . 1 . Assault . | . . . Garrison . | . . . Intercept . | . . . Searches Triggered . | . . . Construction Impeded . | . . . Haulers Reinforced . | . . . Active Scanning Responses . | . . . Cargo Convoy Interrupts . | . . . Stealth | -11 -10 -10 --------- Run | Yrd Mat Sub Distress Signals 1 | . 1 . Communications Jammed . | . . . Distress Signals . | . . . Times Spotted 30 | . 21 9 Peak Tracking Total 7 | . 3 7 Tactical Retreats 3 | . 3 . Traps | -11 -10 -10 ------- Run | Yrd Mat Sub Traps Triggered . | . . . Indirectly . | . . . Trap Hack Attempts . | . . . Triggered . | . . . Disarmed . | . . . Reprogrammed . | . . . Reused . | . . . Traps Extracted . | . . . Installed . | . . . Triggered . | . . . Machines | -11 -10 -10 ---------- Run | Yrd Mat Sub Machines Disabled . | . . . Max in Single Turn . | . . . Machines Repaired . | . . . Machines Dismantled . | . . . Machines Sabotaged . | . . . Overloaded Fab Kills . | . . . Hacking | -11 -10 -10 --------- Run | Yrd Mat Sub Machines Accessed 8 | . 8 . Terminals 7 | . 7 . Fabricators . | . . . Repair Stations . | . . . Recycling Units 1 | . 1 . Scanalyzers . | . . . Garrison Access . | . . . Total Hacks 28 | . 28 . Successful 19 | . 19 . Failed 9 | . 9 . Catastrophic . | . . . Database Lockouts . | . . . Manual 24 | . 24 . Terminals 25 | . 25 . Fabricators . | . . . Repair Stations . | . . . Recycling Units 3 | . 3 . Scanalyzers . | . . . Garrison Access . | . . . Terminal Hacks 7 | . 7 . Part Schematic 1 | . 1 . Robot Analysis 2 | . 2 . Prototype ID Bank 3 | . 3 . Terminal Index 1 | . 1 . Fabricator Hacks . | . . . Repair Station Hacks . | . . . Recycling Unit Hacks 2 | . 2 . Retrieve Components 2 | . 2 . Scanalyzer . | . . . Garrison Access Hacks . | . . . Unauthorized Hacks 10 | . 10 . Terminals 9 | . 9 . Assimilate 1 | . 1 . Botnet 2 | . 2 . Operators 1 | . 1 . Skim 5 | . 5 . Fabricators . | . . . Repair Stations . | . . . Recycling Units 1 | . 1 . Tunnel 1 | . 1 . Scanalyzers . | . . . Garrison Access . | . . . Data Cores Recovered . | . . . Used . | . . . Hacking Detections 8 | . 8 . Full Trace Events . | . . . Feedback Events . | . . . Feedback Blocked . | . . . Robot Schematics Acquired . | . . . Robots Built . | . . . Authchips . | . . . Time . | . . . Total Robot Build Rating . | . . . Part Schematics Acquired 1 | . 1 . Parts Built . | . . . Authchips . | . . . Time . | . . . Total Part Build Rating . | . . . Part Studies Acquired . | . . . Parts Repaired . | . . . Time . | . . . Parts Recycled . | . . . Recycled Matter . | . . . Retrieved Matter . | . . . Retrieved Components 14 | . 14 . Parts Scanalyzed . | . . . Part Schematics Acquired . | . . . Parts Damaged . | . . . Bothacking | -11 -10 -10 ------------ Run | Yrd Mat Sub Used RIF Installer . | . . . Robots Hacked . | . . . Non-combat . | . . . Combat . | . . . Robot Hacks Applied . | . . . Relay Couplers Released . | . . . Fabnet Peak Effective % . | . . . Robots Rewired . | . . . Allies Hacked . | . . . Hacks Repelled . | . . . Allies | -11 -10 -10 -------- Run | Yrd Mat Sub Total Allies 1 | . 1 . Largest Group 1 | . 1 . Highest-Rated Group 10 | . 10 . Highest-Rated Ally 10 | . 10 . Total Orders . | . . . Ally Attacks . | . . . Total Damage . | . . . Kills . | . . . Allies Corrupted . | . . . Allies Melted . | . . . Intel | -11 -10 -10 ------- Run | Yrd Mat Sub Active Infowar (turns) 891 | 39 733 119 Seismic 891 | 39 733 119 Robot Analysis Total 2 | . 2 . Derelict Logs Recovered . | . . . Drone Launches . | . . . Drone Recoveries . | . . . Exploration | -11 -10 -10 ------------- Run | Yrd Mat Sub Turns Passed 1651 | 124 1397 130 Spaces Moved 776 | 45 671 60 Core 4 | 4 . . Treads 772 | 41 671 60 Legs . | . . . Wheels . | . . . Hover . | . . . Flight . | . . . Fastest Speed 50 | 50 160 160 Average Speed 159 | 150 160 160 Slowest Speed 160 | 160 160 160 Overloaded Moves . | . . . Propulsion Burnouts . | . . . Robots Hopped . | . . . Potential Cave-ins . | . . . Cave-ins Triggered . | . . . Exploration Rate (%) 36 | 4 98 6 Regions Visited 2 Branch Regions 1 Pre-discovered Areas 3 | . 3 . Known Exits Taken 1 | . 1 . Unknown Exits Taken 1 | 1 . . Scrap Searched . | . . . Spaces Dug 5 | . 5 . Terrain Destroyed 23 | . 23 . Melee . | . . . Projectile 10 | . 10 . AOE 13 | . 13 . Terrain Rammed . | . . . Walls Destroyed . | . . . Machines Disabled . | . . . Actions | -11 -10 -10 --------- Run | Yrd Mat Sub Total 1000 | 74 845 81 Wait 86 | 7 67 12 Move 774 | 44 670 60 Hop . | . . . Pick Up 18 | 4 14 . Fast Attach 9 | 7 2 . Attach 2 | . 1 1 Detach . | . . . Swap 14 | . 13 1 Drop 7 | . 7 . Fire 90 | 12 71 7 Melee . | . . . Ram . | . . . Kick . | . . . Crush . | . . . Escape Stasis . | . . . Rewire . | . . . Trap . | . . . Miscellaneous . | . . . Route ------- -11/Scrapyard -10/Materials (discovered 6 exits: [*Mat x3] / *Min x2 / *Sub) -10/Subcaves History --------- Turn | Location | Event 2 | -11/Scrapyard | Met Revision 17 11 | -11/Scrapyard | Discovered new exit (range 14) 125 | -11/Scrapyard | Entered Materials 310 | -10/Materials | Build established: Mutant 353 | -10/Materials | Discovered new exit (range 14) 515 | -10/Materials | Discovered new exit (range 13) 749 | -10/Materials | Discovered new exit (range 7) 790 | -10/Materials | Discovered new exit (range 3) 797 | -10/Materials | Identified exit to Mines 834 | -10/Materials | Learned Storage stockpile data 860 | -10/Materials | Learned Storage stockpile data 874 | -10/Materials | Learned location of Subcaves (-10) 900 | -10/Materials | Loaded intel: 1 recycling unit location 938 | -10/Materials | Identified exit to Subcaves 1522 | -10/Materials | Entered Subcaves 1523 | -10/Subcaves | Approached by a straggling Scientist 1619 | -10/Subcaves | Visited Clippyterm 1639 | -10/Subcaves | Ambushed by swarm of Subdwellers 1641 | -10/Subcaves | Ambushed by Subdwellers from Twisted Machinery 1641 | -10/Subcaves | Ambushed by Subdwellers from Twisted Machinery 1647 | -10/Subcaves | Core integrity fell below 50% 1652 | -10/Subcaves | Destroyed by W9-USX(R) with Subdweller Laser Last Messages --------------- Machinery. 01641_ W9-USX(R) angrily emerges from the Twisted Machinery. 01641_ Seismic Detector destroyed. 01641_ 5W-HM0(R) angrily emerges from the Twisted Machinery. 01642_ Mining Laser destroyed. 01643_ 89-P75(R) destroyed. 01644_ BR-NX7(R) destroyed. 01645_ Q1-NV4(h) suffers critical hit (Destroy). 01645_ Q1-NV4(h) destroyed. 01647_ 0F-I0U(R) emerges from the Twisted Machinery. 01648_ Subatomizers dissect the Sub. Power Source. 01648_ Lgt. Cannon destroyed. 01648_ Lgt. Treads destroyed. 01650_ Lgt. Nuclear Core destroyed. 01650_ Lgt. Treads destroyed. 01650_ Assault Rifle destroyed. Map ----- +----------------------------------------------------+ | | | | | | | | | | | | | | | | | | | | | | | | | ?????????????????????????????????????????????????? | | ?????????????????????????????????????????????????? | | ?????????????????????????????????????????????????? | | ?????????????????????????????????????????????????? | | ?????????????????????????????????????????????????? | | ?????????????????????????????????????????????????? | | ?????????????????????????????????????????????????? | | ?????????????????????????????????????????????????? | | ?????????????????????????????????????????????????? | | ?????????????????????????????????????????????????? | | ??????????????????????#######????????????????????? | | ??????????????????????#"""""#????????????????????? | | ??????????????????????#"RRR"#????????????????????? | | ??????????????????????#"R@R"#????????????????????? | | ??????????????????????###RR##????????????????????? | | ???????????# ####?????###!#####???#??????????????? | | ?????????? #??### %%!# ### # ###??????????? | | ????????? ### **= ????????? | | ???????????# =%[ [ ????????? | | ????????????# # ????????? | | ????????????#### #????????????? | | ???????????????# ## ### #????????????? | | ??????????????# ####??? ???????????? | | ??????????????######## ##????? ??????????? | | ?????????????????????## #???????#???????????? | | ??????????????????????# ##??????????????????? | | ?????????????????????## ##?????????????????? | | ?????????????????????# ####??????????????? | | ?????????????????????# #??????????????? | | ?????????????????????# ## #??????????????? | | ?????????????????????# #? #????????????? | | ?????????????????????### #?? #???????????? | | ??????????????????????# ##???#####???????????? | | ??????????????????????# ##????????????????????? | | ??????????????????????## ##?????????????????????? | | ??????????????????????# #??????????????????????? | | ??????????????????????# #??????????????????????? | | ????????????########### #??????????????????????? | +----------------------------------------------------+ Best States ------------- Heat Dissipation 25 Energy Generation 14 Energy Capacity 160 Matter Stores 300 Matter Capacity 300 Sight Range 16 Terrain Scan Density 10 Armor Coverage 150 Evasion (%) 40 Recoil Reduction 2 Item Schematics ----------------- Hcp. Storage Unit | -10/Materials | Hacked Robot Schematics ------------------ None Fabricated ------------ Nothing Repaired ---------- Nothing Studied --------- None Alien Tech Used ----------------- None Achievements -------------- None Challenges ------------ None Game ------ Seed TowerCobblerLegs Manual? 0 Play Time 00:11:20 Cumulative 440.9 hours Start 2026.03.06 @ 02:25:25 End 2026.03.06 @ 02:37:41 Sessions 1 Manual Loads 0 Difficulty Rogue Special Mode None Game No. 347 Rogue 347 Adventurer 0 Explorer 0 Win Type - Total 6 Types 4/0/0/0/0/0/0/2/0/0 Lore% 70 Gallery% 71 Achievement% 58 Wizard Run 0 Options --------- Layout 1 ASCII 0 Keyboard 0 Movement Mouse Keybinds 0 Fullscreen 1 Font 32/SmallcapsGlow Map View 50x35 Zoom Use 0% Tactical HUD 1 Map Filters NONE Filters NONE Steam 1 RUN: 715bead7-bd9c-4bab-af8c-3dbd710e47b1